bitfinex-derivatives/quotes_SOLF0:USTF0_20241222
["timestamp","ask_amount","ask_price","bid_price","bid_amount"]
[1734873535695,2.6936,185.75,185.71,2.694]
[1734873537999,2.6936,185.75,185.72,2.6939]
[1734873538199,1.7367,185.78,185.72,2.6939]
[1734873538703,1.7367,185.78,185.73,2.6938]
[1734873539404,10.05830104,185.82,185.7,2.66]
[1734873539604,14.39827568,185.83,185.7,2.66]
[1734873539796,24.45661624,185.83,185.7,2.66]
[1734873539996,17.05126455,185.83,185.74,2.6935]
[1734873540195,2.66,185.83,185.74,2.6935]
[1734873540395,2.66,185.83,185.7,2.66]
[1734873540606,2.66,185.83,185.75,2.6934]
[1734873540792,24.228945,185.85,185.7,2.66]
[1734873540997,2.66,185.82,185.73,2.6937]
[1734873541196,2.66,185.82,185.7,2.66]
[1734873542205,2.66,185.82,185.75,2.6934]
[1734873544504,2.66,185.82,185.73,2.6937]
[1734873545210,2.66,185.82,185.7,2.66]
[1734873545709,2.66,185.82,185.77,2.6931]
[1734873546211,24.228945,185.85,185.7,2.66]
[1734873546406,16.00536455,185.85,185.7,2.66]
[1734873546610,17.46369225,185.86,185.7,2.66]
[1734873546813,7.40535169,185.86,185.83,2.6923]
[1734873547006,2.64,185.89,185.83,2.6923]
[1734873548406,3.70358849,185.91,185.83,2.6923]
[1734873548612,3.70358849,185.91,185.8,1.6484]
[1734873548613,4.317,185.91,185.8,1.6484]
[1734873548807,4.317,185.91,185.84,2.6922]
[1734873549012,8.651152,185.91,185.84,2.6922]
[1734873549209,4.317,185.91,185.84,2.6922]
[1734873549410,4.317,185.91,185.83,2.6923]
[1734873549708,4.317,185.91,185.8,1.6484]
[1734873549914,4.317,185.91,185.76,59.67508948]
[1734873550113,4.317,185.91,185.76,72.87317172]
[1734873550511,8.651152,185.91,185.76,72.87317172]
[1734873550915,7.40535169,185.9,185.75,6.0055]
[1734873551213,19.96159744,185.9,185.75,6.0055]
[1734873551609,7.40535169,185.89,185.75,6.0055]
[1734873551811,11.73950369,185.89,185.77,2.6932]
[1734873552011,19.96159744,185.89,185.77,2.6932]
[1734873552213,46.17792858,185.89,185.75,2.6934]
[1734873552416,38.77257689,185.88,185.71,72.87317172]
[1734873552708,38.77257689,185.87,185.71,72.87317172]
[1734873552909,41.41257689,185.86,185.71,72.87317172]
[1734873553111,15.99334575,185.85,185.71,72.87317172]
[1734873553320,7.771252,185.85,185.71,72.87317172]
[1734873553616,29.62140678,185.83,185.69,1.5882]
[1734873553811,32.26140678,185.83,185.69,1.5882]
[1734873554011,32.26140678,185.83,185.77,2.6931]
[1734873554209,32.26140678,185.83,185.69,1.5882]
[1734873554210,2.64,185.83,185.74,2.64]
[1734873554609,2.64,185.83,185.78,2.693]
[1734873555014,2.64,185.83,185.74,2.64]
[1734873555214,6.97193878,185.86,185.74,2.64]
[1734873555414,2.64,185.86,185.75,3.2831]
[1734873555811,2.64,185.86,185.79,2.6929]
[1734873557113,2.64,185.86,185.76,1.7088]
[1734873557317,2.64,185.86,185.72,72.87317172]
[1734873557515,2.64,185.86,185.72,1.7088]
[1734873558114,18.8,185.86,185.72,1.7088]
[1734873558314,31.35272082,185.86,185.72,1.7088]
[1734873558512,31.35272082,185.86,185.72,4.4026]
[1734873558513,20.49193878,185.85,185.72,4.4026]
[1734873558715,46.17210708,185.85,185.72,4.4026]
[1734873558916,14.22802082,185.84,185.72,4.4026]
[1734873559220,40.44205539,185.84,185.67,72.87317172]
[1734873559421,25.97425539,185.83,185.68,4.2246]
[1734873559719,25.97425539,185.83,185.71,2.694]
[1734873560020,33.37960708,185.83,185.71,2.694]
[1734873560220,12.55272082,185.82,185.71,2.694]
[1734873560413,2.64,185.81,185.71,2.694]
[1734873560815,2.64,185.81,185.7,2.6942]
[1734873561322,2.64,185.81,185.68,1.5846]
[1734873561520,31.35272082,185.81,185.65,74.26242993]
[1734873561822,2.6934,185.76,185.65,74.26242993]
[1734873562115,4.225,185.75,185.66,2.6948]
[1734873562711,4.225,185.75,185.65,1.38925821]
[1734873562911,3.3633,185.74,185.62,4.3426]
[1734873563119,3.3633,185.74,185.62,1.7026]
[1734873563520,3.3633,185.74,185.62,4.398]
[1734873563825,2.6946,185.68,185.62,4.398]
[1734873565224,2.64,185.7,185.59,5.9901]
[1734873565423,2.64,185.7,185.59,4.348]
[1734873565625,2.64,185.7,185.59,1.708]
[1734873565925,2.695,185.65,185.6,2.6955]
[1734873566226,2.64,185.7,185.59,1.708]
[1734873566819,2.64,185.73,185.59,1.708]
[1734873567015,2.6941,185.72,185.63,2.6952]
[1734873567221,2.6941,185.72,185.59,1.708]
[1734873567222,2.64,185.74,185.64,2.64]
[1734873567427,2.64,185.74,185.65,4.2965]
[1734873568526,2.6938,185.73,185.65,4.2965]
[1734873569423,2.6938,185.73,185.68,2.6944]
[1734873569627,4.2786,185.75,185.65,4.2965]
[1734873569823,1.585,185.75,185.65,4.2965]
[1734873570723,2.6938,185.74,185.69,2.6943]
[1734873571625,1.585,185.75,185.67,2.6945]
[1734873572323,2.6941,185.71,185.67,2.6946]
[1734873572524,1.585,185.75,185.65,4.2965]
[1734873572722,2.6938,185.74,185.69,2.6943]
[1734873573126,2.6938,185.74,185.7,2.6942]
[1734873573322,10.05403457,185.76,185.65,4.2965]
[1734873573516,10.05403457,185.76,185.66,1.6407]
[1734873574127,7.44333457,185.76,185.75,2.6935]
[1734873574332,2.64,185.84,185.74,2.64]
[1734873574627,2.64,185.84,185.78,2.693]
[1734873575226,2.64,185.84,185.75,1.6363]
[1734873575427,2.64,185.84,185.7,75.51317172]
[1734873575627,2.64,185.84,185.72,59.67508948]
[1734873575822,2.64,185.84,185.7,91.23096606]
[1734873575823,2.64,185.84,185.7,2.64]
[1734873576032,2.64,185.84,185.74,2.6936]
[1734873576829,2.64,185.84,185.7,2.64]
[1734873577030,2.64,185.84,185.69,1.6363]
[1734873577225,26.20535169,185.84,185.69,4.2763]
[1734873577425,4.33077689,185.83,185.7,2.6942]
[1734873577732,7.40535169,185.83,185.7,2.6942]
[1734873577928,11.73612858,185.83,185.7,2.6942]
[1734873578530,33.95218367,185.83,185.7,2.6942]
[1734873578831,4.33077689,185.82,185.7,2.6942]
[1734873579025,4.33077689,185.82,185.71,2.694]
[1734873579427,4.33077689,185.82,185.69,4.2763]
[1734873579621,4.33077689,185.83,185.75,2.6934]
[1734873580430,2.64,185.84,185.75,2.6934]
[1734873580731,2.64,185.84,185.69,4.2763]
[1734873581128,2.64,185.84,185.75,2.6934]
[1734873581527,2.64,185.84,185.7,13.19808224]
[1734873581828,2.64,185.84,185.69,77.14947172]
[1734873582028,2.64,185.84,185.7,72.87317172]
[1734873582332,2.64,185.84,185.74,2.6935]
[1734873582530,2.64,185.84,185.7,13.19808224]
[1734873582831,2.64,185.84,185.75,2.6935]
[1734873583431,11.55402939,185.85,185.74,2.6935]
[1734873583632,2.64,185.84,185.71,2.64]
[1734873584934,2.64,185.84,185.71,5.3339]
[1734873585234,32.26140678,185.84,185.71,5.3339]
[1734873585636,32.26140678,185.84,185.71,2.6939]
[1734873586036,7.40535169,185.83,185.72,2.6939]
[1734873586834,10.04535169,185.84,185.69,1.6363]
[1734873587236,7.40535169,185.83,185.69,4.3306]
[1734873587535,23.56535169,185.83,185.66,2.64]
[1734873587836,7.40535169,185.81,185.66,2.64]
[1734873588037,29.62140678,185.81,185.67,2.6945]
[1734873588336,7.40535169,185.81,185.67,2.6945]
[1734873588636,2.694,185.72,185.68,2.6945]
[1734873589530,2.6937,185.74,185.7,2.6942]
[1734873589737,2.64,185.75,185.65,45.86730104]
[1734873590237,2.694,185.72,185.67,2.6946]
[1734873590438,3.2181,185.74,185.63,14.82768224]
[1734873590638,3.2181,185.74,185.63,1.6296]
[1734873590935,2.6945,185.69,185.64,2.6951]
[1734873591436,2.6945,185.69,185.63,1.6296]
[1734873591644,2.6942,185.7,185.66,2.6948]
[1734873595038,2.6941,185.71,185.67,2.6946]
[1734873595240,3.2181,185.74,185.67,2.6946]
[1734873596431,3.2181,185.74,185.63,4.2696]
[1734873596432,2.694,185.72,185.63,4.2696]
[1734873597142,1.6399,185.74,185.63,17.46768224]
[1734873597341,2.6941,185.71,185.63,17.46768224]
[1734873597539,2.6941,185.71,185.63,4.2696]
[1734873597741,1.6399,185.74,185.68,2.6945]
[1734873597938,2.64,185.76,185.63,4.2696]
[1734873598134,2.64,185.78,185.64,1.6547]
[1734873598338,1.6861,185.79,185.71,2.6939]
[1734873598544,4.3261,185.79,185.71,2.6939]
[1734873598842,2.6933,185.77,185.71,2.6939]
[1734873599034,4.3261,185.79,185.71,2.6939]
[1734873599449,2.6935,185.76,185.71,2.6939]
[1734873599641,1.6861,185.79,185.69,2.64]
[1734873599840,4.229,185.8,185.69,2.64]
[1734873601545,4.229,185.8,185.67,72.87317172]
[1734873601742,4.229,185.8,185.67,75.51317172]
[1734873601939,4.229,185.8,185.67,2.64]
[1734873602140,4.229,185.8,185.68,2.64]
[1734873602444,2.64,185.83,185.68,2.64]
[1734873602944,2.64,185.83,185.68,62.31508948]
[1734873603240,2.64,185.83,185.68,2.64]
[1734873603644,2.64,185.83,185.68,75.51317172]
[1734873604038,2.64,185.83,185.68,62.31508948]
[1734873604240,2.64,185.83,185.68,2.64]
[1734873604949,6.97077689,185.83,185.68,2.64]
[1734873605144,6.97077689,185.83,185.73,2.6937]
[1734873605543,6.97077689,185.83,185.75,2.6934]
[1734873605949,2.64,185.83,185.75,2.6934]
[1734873606344,6.97077689,185.83,185.75,2.6934]
[1734873606546,2.64,185.83,185.75,2.6934]
[1734873607650,2.64,185.83,185.68,72.87317172]
[1734873607850,18.8,185.83,185.68,72.87317172]
[1734873608256,31.36336621,185.83,185.68,72.87317172]
[1734873608456,16.16,185.81,185.68,72.87317172]
[1734873608663,16.16,185.81,185.67,2.6946]
[1734873608857,16.16,185.81,185.65,72.87317172]
[1734873609057,4.33077689,185.81,185.65,72.87317172]
[1734873609251,22.6087179,185.83,185.65,72.87317172]
[1734873609859,7.40535169,185.81,185.63,88.85334732]
[1734873610158,21.42247183,185.81,185.63,74.50277172]
[1734873610460,2.6935,185.75,185.7,2.6941]
[1734873610656,2.6935,185.75,185.67,2.64]
[1734873610860,2.64,185.78,185.67,2.64]
[1734873611159,2.64,185.8,185.67,2.64]
[1734873611353,2.64,185.8,185.68,1.6135]
[1734873611559,2.64,185.8,185.73,2.6937]
[1734873611759,2.64,185.8,185.68,1.6135]
[1734873613255,2.64,185.8,185.74,2.6936]
[1734873614957,2.64,185.8,185.72,2.64]
[1734873615158,2.64,185.8,185.73,2.6938]
[1734873615862,2.64,185.8,185.72,2.64]
[1734873617564,2.64,185.8,185.75,2.6934]
[1734873618260,2.64,185.8,185.72,2.64]
[1734873619259,2.64,185.8,185.7,2.64]
[1734873619663,2.64,185.8,185.72,2.6939]
[1734873621767,2.64,185.8,185.7,5.3342]
[1734873621969,1.721,185.79,185.67,72.87317172]
[1734873622264,1.721,185.79,185.66,75.56787172]
[1734873622468,17.881,185.79,185.66,72.87317172]
[1734873622861,40.15770063,185.79,185.66,72.87317172]
[1734873623168,16.16,185.77,185.66,70.26317172]
[1734873623367,16.16,185.75,185.66,70.26317172]
[1734873623668,16.16,185.73,185.6,59.67508948]
[1734873623962,2.6936,185.74,185.6,59.67508948]
[1734873624169,4.34021996,185.78,185.61,1.5934]
[1734873624364,33.98240678,185.79,185.62,2.64]
[1734873624567,7.40535169,185.78,185.62,2.64]
[1734873625265,7.40535169,185.78,185.63,1.6761]
[1734873625770,10.04535169,185.83,185.63,1.6761]
[1734873626771,2.64,185.83,185.75,2.6935]
[1734873627273,2.64,185.83,185.73,2.6937]
[1734873627668,2.64,185.83,185.72,2.64]
[1734873628175,2.64,185.83,185.73,2.6937]
[1734873628573,2.64,185.83,185.72,2.64]
[1734873628770,2.64,185.83,185.74,2.6936]
[1734873629072,2.64,185.83,185.68,1.6109]
[1734873629073,2.64,185.83,185.69,2.64]
[1734873629475,2.64,185.83,185.71,2.6941]
[1734873629668,2.64,185.83,185.69,2.64]
[1734873630475,2.64,185.83,185.73,2.6938]
[1734873630776,2.64,185.83,185.68,1.6109]
[1734873630976,2.64,185.83,185.69,2.64]
[1734873631175,2.64,185.83,185.72,2.6939]
[1734873631476,2.64,185.83,185.68,4.2509]
[1734873631680,2.64,185.83,185.71,2.694]
[1734873631874,2.64,185.83,185.68,4.2509]
[1734873632374,2.64,185.83,185.73,2.6937]
[1734873632571,1.6637,185.84,185.73,2.6937]
[1734873632870,1.6637,185.84,185.68,4.2509]
[1734873632871,2.76,185.83,185.68,4.2509]
[1734873633678,2.76,185.82,185.68,4.2509]
[1734873633975,2.76,185.81,185.68,4.2509]
[1734873634476,1.6637,185.84,185.73,2.6937]
[1734873634771,2.76,185.83,185.68,4.2509]
[1734873634977,2.76,185.83,185.72,2.6939]
[1734873635270,2.76,185.83,185.68,4.2509]
[1734873635469,2.76,185.83,185.68,64.39785506]
[1734873635665,2.76,185.83,185.74,2.6935]
[1734873635866,2.76,185.83,185.68,64.39785506]
[1734873636278,2.76,185.83,185.68,4.2509]
[1734873636469,8.76448071,185.84,185.68,4.2509]
[1734873636971,4.4237,185.84,185.68,4.2509]
[1734873637373,4.4237,185.84,185.69,60.14695506]
[1734873637573,2.76,185.84,185.69,60.14695506]
[1734873637773,1.5819,185.86,185.77,2.6931]
[1734873637977,1.5819,185.86,185.76,2.76]
[1734873638277,1.5819,185.86,185.78,2.693]
[1734873638478,4.3419,185.86,185.78,2.693]
[1734873639076,4.3419,185.86,185.76,2.76]
[1734873639679,4.3419,185.86,185.76,5.4533]
[1734873640481,4.3419,185.86,185.77,2.6932]
[1734873640782,4.3419,185.86,185.76,2.76]
[1734873640982,1.5819,185.86,185.76,2.76]
[1734873641179,4.34078071,185.88,185.77,1.6234]
[1734873641681,4.34078071,185.88,185.81,2.6925]
[1734873641875,4.34078071,185.88,185.77,1.6234]
[1734873642073,4.34078071,185.88,185.77,3.2131]
[1734873642276,2.76,185.89,185.78,1.6163]
[1734873642479,23.98910441,185.91,185.78,1.6163]
[1734873642773,6.06998071,185.91,185.78,1.6163]
[1734873643879,29.62140678,185.92,185.87,2.6916]
[1734873644185,7.40535169,185.94,185.87,2.6916]
[1734873644382,19.97233859,185.94,185.88,2.6915]
[1734873645185,12.5669869,185.94,185.88,2.6915]
[1734873645383,23.9410852,185.95,185.88,2.6915]
[1734873645881,23.9410852,185.95,185.85,1.6678]
[1734873646082,4.33835707,185.95,185.85,1.6678]
[1734873646279,4.33835707,185.96,185.86,1.6664]
[1734873646478,29.62140678,185.97,185.92,2.6909]
[1734873646680,7.40535169,185.99,185.92,2.6909]
[1734873646879,11.7467587,185.99,185.89,2.76]
[1734873647280,7.40535169,185.99,185.89,2.76]
[1734873647680,23.92425509,186.0,185.89,2.76]
[1734873647681,1.7082,186.0,185.92,2.6909]
[1734873648277,1.7082,186.0,185.94,2.6907]
[1734873648477,1.7082,186.0,185.89,2.76]
[1734873649495,1.7082,186.0,185.93,2.6909]
[1734873652690,1.7082,186.0,185.91,2.691]
[1734873653188,1.7082,186.0,185.88,2.76]
[1734873653189,1.7082,186.0,185.89,2.6913]
[1734873653390,1.7082,186.0,185.88,2.76]
[1734873654690,1.7082,186.0,185.91,2.6911]
[1734873655586,1.7082,186.0,185.88,2.76]
[1734873655791,1.7082,186.0,185.86,3.3801]
[1734873656092,1.724,185.99,185.86,2.76]
[1734873656588,1.724,185.99,185.88,2.6915]
[1734873657491,1.724,185.99,185.85,1.6678]
[1734873657685,1.724,185.99,185.82,2.76]
[1734873657891,16.16,185.98,185.82,2.76]
[1734873658092,2.76,185.97,185.84,2.6922]
[1734873658292,12.44749324,185.97,185.82,2.76]
[1734873658588,25.02100211,185.97,185.82,2.76]
[1734873659089,25.02100211,185.97,185.85,2.692]
[1734873659889,25.02100211,185.97,185.82,2.76]
[1734873660090,12.57350887,185.96,185.88,2.6916]
[1734873660289,2.76,185.97,185.88,2.6916]
[1734873660487,2.76,185.97,185.87,2.6917]
[1734873660688,2.76,185.96,185.82,2.76]
[1734873661391,2.76,185.96,185.85,2.692]
[1734873661591,2.76,185.96,185.82,2.76]
[1734873662194,2.76,185.96,185.84,2.6922]
[1734873662386,2.76,185.96,185.82,2.76]
[1734873662794,2.76,185.96,185.78,1.6403]
[1734873663093,41.18100211,185.96,185.79,2.64]
[1734873663292,38.42100211,185.95,185.79,2.64]
[1734873663485,12.57350887,185.94,185.8,2.6928]
[1734873663685,23.86830211,185.94,185.8,2.6928]
[1734873664596,23.86830211,185.94,185.81,2.6926]
[1734873664995,23.86830211,185.94,185.78,1.6403]
[1734873664996,40.02830211,185.94,185.78,1.6403]
[1734873665196,38.42100211,185.93,185.78,1.6403]
[1734873665399,38.42100211,185.92,185.7,3.2319]
[1734873665592,24.90100211,185.91,185.71,4.2967]
[1734873665898,42.78870211,185.91,185.77,2.6932]
[1734873666090,12.57350887,185.9,185.77,2.6932]
[1734873666287,22.26100211,185.9,185.77,2.6932]
[1734873666488,22.26100211,185.9,185.76,2.64]
[1734873666996,22.26100211,185.9,185.78,2.6929]
[1734873667190,22.26100211,185.9,185.76,2.64]
[1734873667191,14.03007637,185.9,185.76,2.64]
[1734873667496,2.64,185.89,185.76,2.64]
[1734873668193,2.64,185.89,185.8,2.6927]
[1734873669691,2.64,185.89,185.76,2.64]
[1734873669894,4.3677,185.91,185.76,2.64]
[1734873670192,2.64,185.91,185.85,2.692]
[1734873670398,1.7196,185.92,185.82,2.64]
[1734873670692,9.68749324,185.93,185.88,2.6916]
[1734873670897,9.68749324,185.93,185.82,2.64]
[1734873672200,9.68749324,185.93,185.86,2.6918]
[1734873672395,9.68749324,185.93,185.82,2.64]
[1734873673399,9.68749324,185.93,185.88,2.6915]
[1734873673597,9.68749324,185.93,185.87,2.64]
[1734873673797,9.68749324,185.93,185.86,2.64]
[1734873674296,9.68749324,185.93,185.83,2.64]
[1734873674602,9.68749324,185.93,185.78,3.2582]
[1734873674603,9.68749324,185.93,185.81,2.64]
[1734873675001,9.68749324,185.93,185.81,5.3325]
[1734873675207,9.68749324,185.93,185.81,2.64]
[1734873675701,9.68749324,185.93,185.82,2.6924]
[1734873678299,9.68749324,185.93,185.78,4.3188]
[1734873678703,38.44237286,185.93,185.78,4.3188]
[1734873678904,28.75487962,185.92,185.78,2.693]
[1734873679197,28.75487962,185.92,185.76,2.64]
[1734873679198,6.98258313,185.91,185.76,2.64]
[1734873679405,6.98258313,185.91,185.79,2.6929]
[1734873679603,1.6706,185.9,185.76,2.64]
[1734873680002,1.6706,185.9,185.83,2.6923]
[1734873680403,1.6706,185.9,185.76,2.64]
[1734873680602,3.3379,185.89,185.76,2.64]
[1734873680805,3.3379,185.89,185.81,2.6925]
[1734873681005,3.3379,185.89,185.76,2.64]
[1734873681306,3.3379,185.89,185.83,2.6923]
[1734873684401,3.3379,185.89,185.82,2.6924]
[1734873685205,3.3379,185.89,185.83,2.6923]
[1734873685705,14.03007637,185.93,185.85,2.692]
[1734873685917,9.68749324,185.93,185.81,2.64]
[1734873686207,12.32749324,185.93,185.81,2.64]
[1734873687104,9.68749324,185.93,185.86,2.6918]
[1734873687408,9.68749324,185.93,185.86,2.64]
[1734873688405,9.68749324,185.93,185.87,2.6917]
[1734873690710,9.68749324,185.93,185.88,2.6915]
[1734873691610,9.68749324,185.93,185.84,2.64]
[1734873691804,9.68749324,185.93,185.86,2.6918]
[1734873692609,9.68749324,185.93,185.84,2.64]
[1734873693805,9.68749324,185.93,185.85,1.7393]
[1734873695116,9.68749324,185.93,185.92,2.691]
[1734873699317,7.07779324,185.93,185.92,2.691]
[1734873700219,4.46789324,185.93,185.92,2.691]
[1734873700518,1.85799324,185.93,185.92,2.691]
[1734873705318,1.85799324,185.93,185.92,5.331]
[1734873705917,1.85799324,185.93,185.92,2.691]
[1734873706118,1.85799324,185.93,185.92,5.331]
[1734873712725,1.85799324,185.93,185.92,2.691]
[1734873712928,1.85799324,185.93,185.88,2.64]
[1734873713123,1.85799324,185.93,185.87,2.64]
[1734873714427,1.85799324,185.93,185.92,2.691]
[1734873715630,1.85799324,185.93,185.87,2.64]
[1734873716028,1.85799324,185.93,185.92,2.691]
[1734873716622,1.85799324,185.93,185.92,0.0815]
[1734873716825,1.85799324,185.93,185.81,5.385]
[1734873717027,1.85799324,185.93,185.82,2.64]
[1734873717825,1.85799324,185.93,185.91,2.6911]
[1734873721037,1.85799324,185.93,185.92,2.691]
[1734873722333,1.85799324,185.93,185.92,5.331]
[1734873723838,1.6067,185.97,185.96,2.6904]
[1734873724434,1.6067,185.97,185.92,2.64]
[1734873725033,1.6067,185.97,185.95,2.6905]
[1734873726235,1.6067,185.97,185.96,2.6904]
[1734873726436,1.6067,185.97,185.92,2.64]
[1734873726838,1.6067,185.97,185.81,7.1114]
[1734873727140,2.6908,185.94,185.82,2.64]
[1734873727331,3.2843,185.96,185.81,1.7264]
[1734873727833,3.2843,185.96,185.82,2.64]
[1734873728137,3.2843,185.96,185.86,2.6919]
[1734873728437,3.2843,185.96,185.75,8.6872]
[1734873728638,2.6916,185.89,185.84,2.6922]
[1734873728838,3.2009,185.88,185.8,2.64]
[1734873730237,1.6345,185.88,185.8,2.64]
[1734873730444,5.331,185.93,185.88,2.6915]
[1734873730642,2.64,185.93,185.8,2.64]
[1734873731038,2.6911,185.92,185.86,2.6918]
[1734873731542,2.64,185.93,185.77,1.7108]
[1734873731733,2.64,185.93,185.8,2.64]
[1734873732538,3.2801,185.95,185.8,2.64]
[1734873733241,3.2801,185.95,185.91,2.6912]
[1734873733541,3.2801,185.95,185.88,2.64]
[1734873733741,3.2801,185.95,185.87,2.64]
[1734873733942,5.9707,185.95,185.86,2.64]
[1734873736449,5.9707,185.95,185.9,2.6913]
[1734873736849,3.2801,185.95,185.86,2.64]
[1734873737250,3.2801,185.95,185.89,2.6913]
[1734873738248,2.6909,185.94,185.89,2.6913]
[1734873739950,3.2801,185.95,185.91,2.6911]
[1734873740244,3.2801,185.95,185.86,2.64]
[1734873740644,3.2801,185.95,185.92,2.691]
[1734873740853,3.2801,185.95,185.86,2.64]
[1734873741248,3.2801,185.95,185.91,2.691]
[1734873741652,3.2801,185.95,185.86,2.64]
[1734873741844,3.2801,185.95,185.92,2.691]
[1734873743448,3.2801,185.95,185.91,2.6912]
[1734873744055,5.9707,185.95,185.91,2.6912]
[1734873744255,5.9707,185.95,185.9,2.6913]
[1734873745053,3.2801,185.95,185.79,1.94350602]
[1734873745247,3.2801,185.95,185.8,2.64]
[1734873746250,2.6908,185.94,185.8,2.64]
[1734873746646,5.9708,185.95,185.9,2.6912]
[1734873746849,3.2801,185.95,185.9,2.6912]
[1734873747552,3.2801,185.95,185.91,2.6911]
[1734873747749,3.2801,185.95,185.87,2.64]
[1734873750259,5.9707,185.95,185.9,2.6912]
[1734873751056,3.2801,185.95,185.79,1.94350602]
[1734873751252,2.64,185.94,185.8,2.64]
[1734873751657,2.6913,185.91,185.8,2.64]
[1734873752560,2.6913,185.91,185.87,2.6917]
[1734873753960,2.6911,185.92,185.87,2.6917]
[1734873754159,2.64,185.94,185.85,2.64]
[1734873754462,3.2801,185.95,185.85,2.64]
[1734873754657,3.2801,185.95,185.93,2.6909]
[1734873754855,6.99500265,186.01,185.9,2.64]
[1734873755052,3.3655,186.0,185.9,2.64]
[1734873755255,3.3655,186.0,185.96,2.6904]
[1734873756260,6.0554,186.0,185.95,2.6906]
[1734873756456,6.0554,186.0,185.9,2.64]
[1734873756662,3.3655,186.0,185.9,2.64]
[1734873757465,3.3655,186.0,185.96,2.6903]
[1734873759556,1.6412,186.0,185.91,1.6243]
[1734873759858,1.6412,186.0,185.97,2.6903]
[1734873760256,1.6412,186.0,185.95,2.64]
[1734873760257,1.6412,186.0,185.96,2.6904]
[1734873762461,1.6412,186.0,185.97,2.6903]
[1734873763564,1.6722,186.06,185.95,2.64]
[1734873764462,2.6894,186.04,185.99,2.69]
[1734873764664,1.6722,186.06,185.95,2.64]
[1734873765468,2.6895,186.03,185.99,2.69]
[1734873766367,1.6722,186.06,185.95,2.64]
[1734873766567,2.6893,186.04,186.0,2.6899]
[1734873767268,4.3612,186.06,186.02,2.6895]
[1734873767462,1.6722,186.06,185.95,2.64]
[1734873768469,2.6893,186.05,186.01,2.6897]
[1734873769569,2.6893,186.05,185.95,2.64]
[1734873769764,2.6893,186.05,186.02,2.6896]
[1734873770371,1.6722,186.06,186.03,2.6893]
[1734873770572,2.6889,186.07,185.95,2.64]
[1734873770768,3.3056,186.09,185.95,2.64]
[1734873771166,1.6511,186.12,185.95,2.64]
[1734873771167,4.2911,186.12,185.95,2.64]
[1734873771566,1.6484,186.14,185.95,2.64]
[1734873771773,1.6404,186.16,185.95,2.64]
[1734873772674,2.6876,186.16,185.95,2.64]
[1734873773773,2.687,186.2,185.97,16.18]
[1734873774068,4.2804,186.23,185.97,16.18]
[1734873774765,2.687,186.21,186.14,2.6877]
[1734873774968,2.687,186.21,186.12,2.64]
[1734873775972,4.3271,186.23,186.17,2.6874]
[1734873776172,1.6404,186.23,186.12,2.64]
[1734873776674,1.6404,186.23,186.15,2.6877]
[1734873777271,1.6404,186.23,186.12,2.64]
[1734873777572,2.64,186.26,186.13,1.7231]
[1734873777773,1.6438,186.25,186.13,1.7231]
[1734873778174,2.6867,186.22,186.16,2.6874]
[1734873779269,1.6438,186.25,186.12,2.64]
[1734873779474,2.687,186.2,186.14,2.6877]
[1734873780773,2.62,186.21,186.08,4.3431]
[1734873781079,1.6383,186.19,186.08,4.3431]
[1734873781274,4.2583,186.19,186.08,4.3431]